Workbook

Sheet 開始
B1: テンプレートについて
B2: このテンプレートを使用し、月間と年間の予算を管理します。
B3: 収益と支出をそれぞれのテーブルに入力し、毎月や毎年の現金の不足や余剰を計算します。
B4: 各テーブルでスパークライン​​が自動的に更新されます。
B5: 注:
B6: 個人予算ワークシートの列 A に詳細な指示が記載されています。このテキストは意図的に表示されません。テキストを削除するには、列 A を選択し、[削除] を選択します。テキストを再表示するには、列 A を選択し、フォントの色を変更します。
B7: テーブルの詳細については、テーブル内で Shift キーを押し、F10 キーを押して、[テーブル] オプションを選択し、[代替テキスト] を選択します。

Sheet 個人予算
A1: このワークシートでは、単純な個人予算を作成します。このワークシートの使用方法に関する役立つ説明がこの列にある各セルに表示されます。下向き矢印で開始します。
A2: このワークシートのタイトルが右のセルに表示されます。セル Q2 に年を入力します。次の指示はセル A4 に表示されます。 | B2: 個人予算 | Q2: =YEAR(TODAY()) -> 2019
A4: ラベルはセル C4 から P4 に表示されます。 | C4: 収益 | D4: 1 月 | E4: 2 月 | F4: 3 月 | G4: 4 月 | H4: 5 月 | I4: 6 月 | J4: 7 月 | K4: 8 月 | L4: 9 月 | M4: 10 月 | N4: 11 月 | O4: 12 月 | P4: 年
A5: セル C5 から順に、詳細を収入のテーブルに入力します。次の指示はセル A11 に表示されます。 | C5: 収入 | D5: 1 月 | E5: 2 月 | F5: 3 月 | G5: 4 月 | H5: 5 月 | I5: 6 月 | J5: 7 月 | K5: 8 月 | L5: 9 月 | M5: 10 月 | N5: 11 月 | O5: 12 月 | P5: 年 | Q5: スパークライン
C6: 給料 | D6: ¥2,600.00 | E6: ¥2,600.00 | F6: ¥2,600.00 | P6: =SUM(収入[[#This Row],[1 月]:[12 月]]) -> ¥7,800.00
C7: 利息/配当金 | D7: ¥649.00 | E7: ¥313.00 | F7: ¥664.00 | P7: =SUM(収入[[#This Row],[1 月]:[12 月]]) -> ¥1,626.00
C8: その他 | D8: ¥474.00 | E8: ¥643.00 | F8: ¥380.00 | P8: =SUM(収入[[#This Row],[1 月]:[12 月]]) -> ¥1,497.00
C9: 集計 | D9: =SUBTOTAL(109,収入[1 月]) -> ¥3,723.00 | E9: =SUBTOTAL(109,収入[2 月]) -> ¥3,556.00 | F9: =SUBTOTAL(109,収入[3 月]) -> ¥3,644.00 | G9: =SUBTOTAL(109,収入[4 月]) -> ¥0.00 | H9: =SUBTOTAL(109,収入[5 月]) -> ¥0.00 | I9: =SUBTOTAL(109,収入[6 月]) -> ¥0.00 | J9: =SUBTOTAL(109,収入[7 月]) -> ¥0.00 | K9: =SUBTOTAL(109,収入[8 月]) -> ¥0.00 | L9: =SUBTOTAL(109,収入[9 月]) -> ¥0.00 | M9: =SUBTOTAL(109,収入[10 月]) -> ¥0.00 | N9: =SUBTOTAL(109,収入[11 月]) -> ¥0.00 | O9: =SUBTOTAL(109,収入[12 月]) -> ¥0.00 | P9: =SUBTOTAL(109,収入[年]) -> ¥10,923.00
A11: ラベルはセル C11 から P11 までに表示されます。 | C11: 支出 | D11: 1 月 | E11: 2 月 | F11: 3 月 | G11: 4 月 | H11: 5 月 | I11: 6 月 | J11: 7 月 | K11: 8 月 | L11: 9 月 | M11: 10 月 | N11: 11 月 | O11: 12 月 | P11: 年
A12: セル C12 から順に、自宅の経費をテーブルに入力します。次の指示はセル A20 に表示されます。 | C12: 自宅 | D12: 1 月 | E12: 2 月 | F12: 3 月 | G12: 4 月 | H12: 5 月 | I12: 6 月 | J12: 7 月 | K12: 8 月 | L12: 9 月 | M12: 10 月 | N12: 11 月 | O12: 12 月 | P12: 年 | Q12: スパークライン
C13: 住宅ローン | D13: ¥750.00 | E13: ¥750.00 | F13: ¥750.00 | P13: =SUM(自宅[[#This Row],[1 月]:[12 月]]) -> ¥2,250.00
C14: 保険 | P14: =SUM(自宅[[#This Row],[1 月]:[12 月]]) -> ¥0.00
C15: 修理費 | F15: ¥75.00 | P15: =SUM(自宅[[#This Row],[1 月]:[12 月]]) -> ¥75.00
C16: 点検費 | D16: ¥35.00 | E16: ¥35.00 | F16: ¥35.00 | P16: =SUM(自宅[[#This Row],[1 月]:[12 月]]) -> ¥105.00
C17: 水道光熱費 | D17: ¥165.00 | E17: ¥165.00 | F17: ¥165.00 | P17: =SUM(自宅[[#This Row],[1 月]:[12 月]]) -> ¥495.00
C18: 集計 | D18: =SUBTOTAL(109,自宅[1 月]) -> ¥950.00 | E18: =SUBTOTAL(109,自宅[2 月]) -> ¥950.00 | F18: =SUBTOTAL(109,自宅[3 月]) -> ¥1,025.00 | G18: =SUBTOTAL(109,自宅[4 月]) -> ¥0.00 | H18: =SUBTOTAL(109,自宅[5 月]) -> ¥0.00 | I18: =SUBTOTAL(109,自宅[6 月]) -> ¥0.00 | J18: =SUBTOTAL(109,自宅[7 月]) -> ¥0.00 | K18: =SUBTOTAL(109,自宅[8 月]) -> ¥0.00 | L18: =SUBTOTAL(109,自宅[9 月]) -> ¥0.00 | M18: =SUBTOTAL(109,自宅[10 月]) -> ¥0.00 | N18: =SUBTOTAL(109,自宅[11 月]) -> ¥0.00 | O18: =SUBTOTAL(109,自宅[12 月]) -> ¥0.00 | P18: =SUBTOTAL(109,自宅[年]) -> ¥2,925.00
A20: セル C20 から順に、毎日の支出をテーブルに入力します。次の指示はセル A29 に表示されます。 | C20: 生活費 | D20: 1 月 | E20: 2 月 | F20: 3 月 | G20: 4 月 | H20: 5 月 | I20: 6 月 | J20: 7 月 | K20: 8 月 | L20: 9 月 | M20: 10 月 | N20: 11 月 | O20: 12 月 | P20: 年度 | Q20: スパークライン
C21: 食料品 | D21: ¥191.00 | E21: ¥152.00 | F21: ¥145.00 | P21: =SUM(毎日[[#This Row],[1 月]:[12 月]]) -> ¥488.00
C22: 保育 | D22: ¥200.00 | E22: ¥200.00 | F22: ¥200.00 | P22: =SUM(毎日[[#This Row],[1 月]:[12 月]]) -> ¥600.00
C23: ドライ クリーニング | D23: ¥20.00 | F23: ¥20.00 | P23: =SUM(毎日[[#This Row],[1 月]:[12 月]]) -> ¥40.00
C24: 外食 | D24: ¥55.00 | F24: ¥56.00 | P24: =SUM(毎日[[#This Row],[1 月]:[12 月]]) -> ¥111.00
C25: ハウスクリーニング サービス | D25: ¥25.00 | E25: ¥17.00 | F25: ¥7.00 | P25: =SUM(毎日[[#This Row],[1 月]:[12 月]]) -> ¥49.00
C26: 犬の散歩代行 | D26: ¥10.00 | E26: ¥5.00 | F26: ¥7.00 | P26: =SUM(毎日[[#This Row],[1 月]:[12 月]]) -> ¥22.00
C27: 集計 | D27: =SUBTOTAL(109,毎日[1 月]) -> ¥501.00 | E27: =SUBTOTAL(109,毎日[2 月]) -> ¥374.00 | F27: =SUBTOTAL(109,毎日[3 月]) -> ¥435.00 | G27: =SUBTOTAL(109,毎日[4 月]) -> ¥0.00 | H27: =SUBTOTAL(109,毎日[5 月]) -> ¥0.00 | I27: =SUBTOTAL(109,毎日[6 月]) -> ¥0.00 | J27: =SUBTOTAL(109,毎日[7 月]) -> ¥0.00 | K27: =SUBTOTAL(109,毎日[8 月]) -> ¥0.00 | L27: =SUBTOTAL(109,毎日[9 月]) -> ¥0.00 | M27: =SUBTOTAL(109,毎日[10 月]) -> ¥0.00 | N27: =SUBTOTAL(109,毎日[11 月]) -> ¥0.00 | O27: =SUBTOTAL(109,毎日[12 月]) -> ¥0.00 | P27: =SUBTOTAL(109,毎日[年度]) -> ¥1,310.00
A29: セル C29 から順に、交通費をテーブルに入力します。次の指示はセル A38 に表示されます。 | C29: 交通費 | D29: 1 月 | E29: 2 月 | F29: 3 月 | G29: 4 月 | H29: 5 月 | I29: 6 月 | J29: 7 月 | K29: 8 月 | L29: 9 月 | M29: 10 月 | N29: 11 月 | O29: 12 月 | P29: 年度 | Q29: スパークライン
C30: 光熱費 | D30: ¥195.00 | E30: ¥125.00 | F30: ¥171.00 | P30: =SUM(交通[[#This Row],[1 月]:[12 月]]) -> ¥491.00
C31: 保険料 | D31: ¥165.00 | E31: ¥165.00 | F31: ¥165.00 | P31: =SUM(交通[[#This Row],[1 月]:[12 月]]) -> ¥495.00
C32: 修繕費 | P32: =SUM(交通[[#This Row],[1 月]:[12 月]]) -> ¥0.00
C33: 洗車/整備サービス | D33: ¥10.00 | P33: =SUM(交通[[#This Row],[1 月]:[12 月]]) -> ¥10.00
C34: 駐車場 | D34: ¥10.00 | E34: ¥40.00 | F34: ¥20.00 | P34: =SUM(交通[[#This Row],[1 月]:[12 月]]) -> ¥70.00
C35: 公共交通費 | D35: ¥20.00 | E35: ¥40.00 | F35: ¥30.00 | P35: =SUM(交通[[#This Row],[1 月]:[12 月]]) -> ¥90.00
C36: 集計 | D36: =SUBTOTAL(109,交通[1 月]) -> ¥400.00 | E36: =SUBTOTAL(109,交通[2 月]) -> ¥370.00 | F36: =SUBTOTAL(109,交通[3 月]) -> ¥386.00 | G36: =SUBTOTAL(109,交通[4 月]) -> ¥0.00 | H36: =SUBTOTAL(109,交通[5 月]) -> ¥0.00 | I36: =SUBTOTAL(109,交通[6 月]) -> ¥0.00 | J36: =SUBTOTAL(109,交通[7 月]) -> ¥0.00 | K36: =SUBTOTAL(109,交通[8 月]) -> ¥0.00 | L36: =SUBTOTAL(109,交通[9 月]) -> ¥0.00 | M36: =SUBTOTAL(109,交通[10 月]) -> ¥0.00 | N36: =SUBTOTAL(109,交通[11 月]) -> ¥0.00 | O36: =SUBTOTAL(109,交通[12 月]) -> ¥0.00 | P36: =SUBTOTAL(109,交通[年度]) -> ¥1,156.00
A38: セル C38 から順に、娯楽費をテーブルに入力します。次の指示がセル A45 に表示されます。 | C38: 娯楽 | D38: 1 月 | E38: 2 月 | F38: 3 月 | G38: 4 月 | H38: 5 月 | I38: 6 月 | J38: 7 月 | K38: 8 月 | L38: 9 月 | M38: 10 月 | N38: 11 月 | O38: 12 月 | P38: 年度 | Q38: スパークライン
C39: ケーブル TV | D39: ¥85.00 | E39: ¥85.00 | F39: ¥85.00 | P39: =SUM(娯楽[[#This Row],[1 月]:[12 月]]) -> ¥255.00
C40: ビデオ/DVD レンタル | D40: ¥7.00 | E40: ¥8.00 | F40: ¥9.00 | P40: =SUM(娯楽[[#This Row],[1 月]:[12 月]]) -> ¥24.00
C41: 映画/演劇 | D41: ¥9.00 | E41: ¥5.00 | F41: ¥9.00 | P41: =SUM(娯楽[[#This Row],[1 月]:[12 月]]) -> ¥23.00
C42: コンサート/クラブ | D42: ¥5.00 | E42: ¥5.00 | F42: ¥7.00 | P42: =SUM(娯楽[[#This Row],[1 月]:[12 月]]) -> ¥17.00
C43: 集計 | D43: =SUBTOTAL(109,娯楽[1 月]) -> ¥106.00 | E43: =SUBTOTAL(109,娯楽[2 月]) -> ¥103.00 | F43: =SUBTOTAL(109,娯楽[3 月]) -> ¥110.00 | G43: =SUBTOTAL(109,娯楽[4 月]) -> ¥0.00 | H43: =SUBTOTAL(109,娯楽[5 月]) -> ¥0.00 | I43: =SUBTOTAL(109,娯楽[6 月]) -> ¥0.00 | J43: =SUBTOTAL(109,娯楽[7 月]) -> ¥0.00 | K43: =SUBTOTAL(109,娯楽[8 月]) -> ¥0.00 | L43: =SUBTOTAL(109,娯楽[9 月]) -> ¥0.00 | M43: =SUBTOTAL(109,娯楽[10 月]) -> ¥0.00 | N43: =SUBTOTAL(109,娯楽[11 月]) -> ¥0.00 | O43: =SUBTOTAL(109,娯楽[12 月]) -> ¥0.00 | P43: =SUBTOTAL(109,娯楽[年度]) -> ¥319.00
A45: セル C12 から順に、医療費をテーブルに入力します。次の指示はセル A55 に表示されます。 | C45: 医療保険 | D45: 1 月 | E45: 2 月 | F45: 3 月 | G45: 4 月 | H45: 5 月 | I45: 6 月 | J45: 7 月 | K45: 8 月 | L45: 9 月 | M45: 10 月 | N45: 11 月 | O45: 12 月 | P45: 年度 | Q45: スパークライン
C46: スポーツ クラブ会費 | D46: ¥50.00 | E46: ¥50.00 | F46: ¥50.00 | P46: =SUM(医療保険[[#This Row],[1 月]:[12 月]]) -> ¥150.00
C47: 保険料 | D47: ¥225.00 | E47: ¥225.00 | F47: ¥225.00 | P47: =SUM(医療保険[[#This Row],[1 月]:[12 月]]) -> ¥675.00
C48: 処方薬 | D48: ¥100.00 | E48: ¥100.00 | F48: ¥100.00 | P48: =SUM(医療保険[[#This Row],[1 月]:[12 月]]) -> ¥300.00
C49: 市販薬 | D49: ¥6.00 | E49: ¥2.00 | F49: ¥9.00 | P49: =SUM(医療保険[[#This Row],[1 月]:[12 月]]) -> ¥17.00
C50: 患者負担金/自己負担費 | D50: ¥20.00 | F50: ¥41.00 | P50: =SUM(医療保険[[#This Row],[1 月]:[12 月]]) -> ¥61.00
C51: 獣医/ペット医薬品 | D51: ¥4.00 | F51: ¥25.00 | P51: =SUM(医療保険[[#This Row],[1 月]:[12 月]]) -> ¥29.00
C52: 生命保険 | D52: ¥55.00 | E52: ¥55.00 | F52: ¥55.00 | P52: =SUM(医療保険[[#This Row],[1 月]:[12 月]]) -> ¥165.00
C53: 集計 | D53: =SUBTOTAL(109,医療保険[1 月]) -> ¥460.00 | E53: =SUBTOTAL(109,医療保険[2 月]) -> ¥432.00 | F53: =SUBTOTAL(109,医療保険[3 月]) -> ¥505.00 | G53: =SUBTOTAL(109,医療保険[4 月]) -> ¥0.00 | H53: =SUBTOTAL(109,医療保険[5 月]) -> ¥0.00 | I53: =SUBTOTAL(109,医療保険[6 月]) -> ¥0.00 | J53: =SUBTOTAL(109,医療保険[7 月]) -> ¥0.00 | K53: =SUBTOTAL(109,医療保険[8 月]) -> ¥0.00 | L53: =SUBTOTAL(109,医療保険[9 月]) -> ¥0.00 | M53: =SUBTOTAL(109,医療保険[10 月]) -> ¥0.00 | N53: =SUBTOTAL(109,医療保険[11 月]) -> ¥0.00 | O53: =SUBTOTAL(109,医療保険[12 月]) -> ¥0.00 | P53: =SUBTOTAL(109,医療保険[年度]) -> ¥1,397.00
A55: セル C55 から順に、休暇の支出をテーブルに入力します。次の指示はセル A64 に表示されます。 | C55: 休暇 | D55: 1 月 | E55: 2 月 | F55: 3 月 | G55: 4 月 | H55: 5 月 | I55: 6 月 | J55: 7 月 | K55: 8 月 | L55: 9 月 | M55: 10 月 | N55: 11 月 | O55: 12 月 | P55: 年度 | Q55: スパークライン
C56: 航空運賃 | E56: ¥485.00 | P56: =SUM(休暇[[#This Row],[1 月]:[12 月]]) -> ¥485.00
C57: 宿泊費 | E57: ¥245.00 | P57: =SUM(休暇[[#This Row],[1 月]:[12 月]]) -> ¥245.00
C58: 食費 | E58: ¥95.00 | P58: =SUM(休暇[[#This Row],[1 月]:[12 月]]) -> ¥95.00
C59: お土産 | P59: =SUM(休暇[[#This Row],[1 月]:[12 月]]) -> ¥0.00
C60: ペット ホテル | P60: =SUM(休暇[[#This Row],[1 月]:[12 月]]) -> ¥0.00
C61: レンタカー | E61: ¥85.00 | P61: =SUM(休暇[[#This Row],[1 月]:[12 月]]) -> ¥85.00
C62: 集計 | D62: =SUBTOTAL(109,休暇[1 月]) -> ¥0.00 | E62: =SUBTOTAL(109,休暇[2 月]) -> ¥910.00 | F62: =SUBTOTAL(109,休暇[3 月]) -> ¥0.00 | G62: =SUBTOTAL(109,休暇[4 月]) -> ¥0.00 | H62: =SUBTOTAL(109,休暇[5 月]) -> ¥0.00 | I62: =SUBTOTAL(109,休暇[6 月]) -> ¥0.00 | J62: =SUBTOTAL(109,休暇[7 月]) -> ¥0.00 | K62: =SUBTOTAL(109,休暇[8 月]) -> ¥0.00 | L62: =SUBTOTAL(109,休暇[9 月]) -> ¥0.00 | M62: =SUBTOTAL(109,休暇[10 月]) -> ¥0.00 | N62: =SUBTOTAL(109,休暇[11 月]) -> ¥0.00 | O62: =SUBTOTAL(109,休暇[12 月]) -> ¥0.00 | P62: =SUBTOTAL(109,休暇[年度]) -> ¥910.00
A64: セル C64 から順に、レクリエーションの支出をテーブルに入力します。次の指示はセル A71 に表示されます。 | C64: レクリエーション | D64: 1 月 | E64: 2 月 | F64: 3 月 | G64: 4 月 | H64: 5 月 | I64: 6 月 | J64: 7 月 | K64: 8 月 | L64: 9 月 | M64: 10 月 | N64: 11 月 | O64: 12 月 | P64: 年度 | Q64: スパークライン
C65: ジム費 | P65: =SUM(レクリエーション[[#This Row],[1 月]:[12 月]]) -> ¥0.00
C66: スポーツ用品 | P66: =SUM(レクリエーション[[#This Row],[1 月]:[12 月]]) -> ¥0.00
C67: チーム会費 | P67: =SUM(レクリエーション[[#This Row],[1 月]:[12 月]]) -> ¥0.00
C68: 玩具/子供用品 | D68: ¥39.00 | E68: ¥33.00 | F68: ¥40.00 | P68: =SUM(レクリエーション[[#This Row],[1 月]:[12 月]]) -> ¥112.00
C69: 集計 | D69: =SUBTOTAL(109,レクリエーション[1 月]) -> ¥39.00 | E69: =SUBTOTAL(109,レクリエーション[2 月]) -> ¥33.00 | F69: =SUBTOTAL(109,レクリエーション[3 月]) -> ¥40.00 | G69: =SUBTOTAL(109,レクリエーション[4 月]) -> ¥0.00 | H69: =SUBTOTAL(109,レクリエーション[5 月]) -> ¥0.00 | I69: =SUBTOTAL(109,レクリエーション[6 月]) -> ¥0.00 | J69: =SUBTOTAL(109,レクリエーション[7 月]) -> ¥0.00 | K69: =SUBTOTAL(109,レクリエーション[8 月]) -> ¥0.00 | L69: =SUBTOTAL(109,レクリエーション[9 月]) -> ¥0.00 | M69: =SUBTOTAL(109,レクリエーション[10 月]) -> ¥0.00 | N69: =SUBTOTAL(109,レクリエーション[11 月]) -> ¥0.00 | O69: =SUBTOTAL(109,レクリエーション[12 月]) -> ¥0.00 | P69: =SUBTOTAL(109,レクリエーション[年度]) -> ¥112.00
A71: セル C71 から順に、会費と購読料のテーブルに経費を入力します。次の指示はセル A81 に表示されます。 | C71: 会費/購読料 | D71: 1 月 | E71: 2 月 | F71: 3 月 | G71: 4 月 | H71: 5 月 | I71: 6 月 | J71: 7 月 | K71: 8 月 | L71: 9 月 | M71: 10 月 | N71: 11 月 | O71: 12 月 | P71: 年度 | Q71: スパークライン
C72: 雑誌 | P72: =SUM(会費と購読料[[#This Row],[1 月]:[12 月]]) -> ¥0.00
C73: 新聞 | P73: =SUM(会費と購読料[[#This Row],[1 月]:[12 月]]) -> ¥0.00
C74: インターネット接続 | P74: =SUM(会費と購読料[[#This Row],[1 月]:[12 月]]) -> ¥0.00
C75: 公共ラジオ | P75: =SUM(会費と購読料[[#This Row],[1 月]:[12 月]]) -> ¥0.00
C76: 公共テレビ | P76: =SUM(会費と購読料[[#This Row],[1 月]:[12 月]]) -> ¥0.00
C77: 宗教団体 | D77: ¥29.00 | E77: ¥18.00 | F77: ¥17.00 | P77: =SUM(会費と購読料[[#This Row],[1 月]:[12 月]]) -> ¥64.00
C78: 募金/寄付 | P78: =SUM(会費と購読料[[#This Row],[1 月]:[12 月]]) -> ¥0.00
C79: 集計 | D79: =SUBTOTAL(109,会費と購読料[1 月]) -> ¥29.00 | E79: =SUBTOTAL(109,会費と購読料[2 月]) -> ¥18.00 | F79: =SUBTOTAL(109,会費と購読料[3 月]) -> ¥17.00 | G79: =SUBTOTAL(109,会費と購読料[4 月]) -> ¥0.00 | H79: =SUBTOTAL(109,会費と購読料[5 月]) -> ¥0.00 | I79: =SUBTOTAL(109,会費と購読料[6 月]) -> ¥0.00 | J79: =SUBTOTAL(109,会費と購読料[7 月]) -> ¥0.00 | K79: =SUBTOTAL(109,会費と購読料[8 月]) -> ¥0.00 | L79: =SUBTOTAL(109,会費と購読料[9 月]) -> ¥0.00 | M79: =SUBTOTAL(109,会費と購読料[10 月]) -> ¥0.00 | N79: =SUBTOTAL(109,会費と購読料[11 月]) -> ¥0.00 | O79: =SUBTOTAL(109,会費と購読料[12 月]) -> ¥0.00 | P79: =SUBTOTAL(109,会費と購読料[年度]) -> ¥64.00
A81: セル C81 から順に、個人経費をテーブルに入力します。次の指示はセル A89 に表示されます。 | C81: 私用 | D81: 1 月 | E81: 2 月 | F81: 3 月 | G81: 4 月 | H81: 5 月 | I81: 6 月 | J81: 7 月 | K81: 8 月 | L81: 9 月 | M81: 10 月 | N81: 11 月 | O81: 12 月 | P81: 年度 | Q81: スパークライン
C82: 衣料品 | F82: ¥29.00 | P82: =SUM(個人[[#This Row],[1 月]:[12 月]]) -> ¥29.00
C83: 贈答品 | E83: ¥35.00 | P83: =SUM(個人[[#This Row],[1 月]:[12 月]]) -> ¥35.00
C84: 美容/理容費 | D84: ¥25.00 | E84: ¥25.00 | F84: ¥25.00 | P84: =SUM(個人[[#This Row],[1 月]:[12 月]]) -> ¥75.00
C85: 書籍 | P85: =SUM(個人[[#This Row],[1 月]:[12 月]]) -> ¥0.00
C86: 音楽 (CD など) | P86: =SUM(個人[[#This Row],[1 月]:[12 月]]) -> ¥0.00
C87: 集計 | D87: =SUBTOTAL(109,個人[1 月]) -> ¥25.00 | E87: =SUBTOTAL(109,個人[2 月]) -> ¥60.00 | F87: =SUBTOTAL(109,個人[3 月]) -> ¥54.00 | G87: =SUBTOTAL(109,個人[4 月]) -> ¥0.00 | H87: =SUBTOTAL(109,個人[5 月]) -> ¥0.00 | I87: =SUBTOTAL(109,個人[6 月]) -> ¥0.00 | J87: =SUBTOTAL(109,個人[7 月]) -> ¥0.00 | K87: =SUBTOTAL(109,個人[8 月]) -> ¥0.00 | L87: =SUBTOTAL(109,個人[9 月]) -> ¥0.00 | M87: =SUBTOTAL(109,個人[10 月]) -> ¥0.00 | N87: =SUBTOTAL(109,個人[11 月]) -> ¥0.00 | O87: =SUBTOTAL(109,個人[12 月]) -> ¥0.00 | P87: =SUBTOTAL(109,個人[年度]) -> ¥139.00
A89: セル C89 から順に、金融債務をテーブルに入力します。次の指示はセル A97 に表示されます。 | C89: 金融債務 | D89: 1 月 | E89: 2 月 | F89: 3 月 | G89: 4 月 | H89: 5 月 | I89: 6 月 | J89: 7 月 | K89: 8 月 | L89: 9 月 | M89: 10 月 | N89: 11 月 | O89: 12 月 | P89: 年度 | Q89: スパークライン
C90: 定期預金 | D90: ¥25.00 | E90: ¥25.00 | F90: ¥25.00 | P90: =SUM(金融​​[[#This Row],[1 月]:[12 月]]) -> ¥75.00
C91: 年金 (401k、ロスIRA) | D91: ¥45.00 | E91: ¥45.00 | F91: ¥45.00 | P91: =SUM(金融​​[[#This Row],[1 月]:[12 月]]) -> ¥135.00
C92: クレジット カード支払 | D92: ¥75.00 | E92: ¥75.00 | F92: ¥75.00 | P92: =SUM(金融​​[[#This Row],[1 月]:[12 月]]) -> ¥225.00
C93: 所得税 (追加) | P93: =SUM(金融​​[[#This Row],[1 月]:[12 月]]) -> ¥0.00
C94: その他の債務 | D94: ¥32.00 | E94: ¥34.00 | F94: ¥1.00 | P94: =SUM(金融​​[[#This Row],[1 月]:[12 月]]) -> ¥67.00
C95: 集計 | D95: =SUBTOTAL(109,金融​​[1 月]) -> ¥177.00 | E95: =SUBTOTAL(109,金融​​[2 月]) -> ¥179.00 | F95: =SUBTOTAL(109,金融​​[3 月]) -> ¥146.00 | G95: =SUBTOTAL(109,金融​​[4 月]) -> ¥0.00 | H95: =SUBTOTAL(109,金融​​[5 月]) -> ¥0.00 | I95: =SUBTOTAL(109,金融​​[6 月]) -> ¥0.00 | J95: =SUBTOTAL(109,金融​​[7 月]) -> ¥0.00 | K95: =SUBTOTAL(109,金融​​[8 月]) -> ¥0.00 | L95: =SUBTOTAL(109,金融​​[9 月]) -> ¥0.00 | M95: =SUBTOTAL(109,金融​​[10 月]) -> ¥0.00 | N95: =SUBTOTAL(109,金融​​[11 月]) -> ¥0.00 | O95: =SUBTOTAL(109,金融​​[12 月]) -> ¥0.00 | P95: =SUBTOTAL(109,金融​​[年度]) -> ¥502.00
A97: セル C97 から順に、雑費を入力します。次の指示はセル A105 に表示されます。 | C97: 雑支払 | D97: 1 月 | E97: 2 月 | F97: 3 月 | G97: 4 月 | H97: 5 月 | I97: 6 月 | J97: 7 月 | K97: 8 月 | L97: 9 月 | M97: 10 月 | N97: 11 月 | O97: 12 月 | P97: 年 | Q97: スパークライン
C98: その他 | P98: =SUM(雑費[[#This Row],[1 月]:[12 月]]) -> ¥0.00
C99: その他 | P99: =SUM(雑費[[#This Row],[1 月]:[12 月]]) -> ¥0.00
C100: その他 | P100: =SUM(雑費[[#This Row],[1 月]:[12 月]]) -> ¥0.00
C101: その他 | P101: =SUM(雑費[[#This Row],[1 月]:[12 月]]) -> ¥0.00
C102: その他 | P102: =SUM(雑費[[#This Row],[1 月]:[12 月]]) -> ¥0.00
C103: 集計 | D103: =SUBTOTAL(109,雑費[1 月]) -> ¥0.00 | E103: =SUBTOTAL(109,雑費[2 月]) -> ¥0.00 | F103: =SUBTOTAL(109,雑費[3 月]) -> ¥0.00 | G103: =SUBTOTAL(109,雑費[4 月]) -> ¥0.00 | H103: =SUBTOTAL(109,雑費[5 月]) -> ¥0.00 | I103: =SUBTOTAL(109,雑費[6 月]) -> ¥0.00 | J103: =SUBTOTAL(109,雑費[7 月]) -> ¥0.00 | K103: =SUBTOTAL(109,雑費[8 月]) -> ¥0.00 | L103: =SUBTOTAL(109,雑費[9 月]) -> ¥0.00 | M103: =SUBTOTAL(109,雑費[10 月]) -> ¥0.00 | N103: =SUBTOTAL(109,雑費[11 月]) -> ¥0.00 | O103: =SUBTOTAL(109,雑費[12 月]) -> ¥0.00 | P103: =SUBTOTAL(109,雑費[年]) -> ¥0.00
A105: セル C105 から始まるテーブルで合計が自動計算されます。毎月と年間に対して、支出合計と現金の不足または余剰が計算され、スパークラインが更新されます。 | C105: 合計 | D105: 1 月 | E105: 2 月 | F105: 3 月 | G105: 4 月 | H105: 5 月 | I105: 6 月 | J105: 7 月 | K105: 8 月 | L105: 9 月 | M105: 10 月 | N105: 11 月 | O105: 12 月 | P105: 年 | Q105: スパークライン
C106: 支出合計 | D106: =SUM(雑費[[#Totals],[1 月]],金融​​[[#Totals],[1 月]],個人[[#Totals],[1 月]],会費と購読料[[#Totals],[1 月]],レクリエーション[[#Totals],[1 月]],休暇[[#Totals],[1 月]],医療保険[[#Totals],[1 月]],娯楽[[#Totals],[1 月]],交通[[#Totals],[1 月]],毎日[[#Totals],[1 月]],自宅[[#Totals],[1 月]]) -> ¥2,687.00 | E106: =SUM(雑費[[#Totals],[2 月]],金融​​[[#Totals],[2 月]],個人[[#Totals],[2 月]],会費と購読料[[#Totals],[2 月]],レクリエーション[[#Totals],[2 月]],休暇[[#Totals],[2 月]],医療保険[[#Totals],[2 月]],娯楽[[#Totals],[2 月]],交通[[#Totals],[2 月]],毎日[[#Totals],[2 月]],自宅[[#Totals],[2 月]]) -> ¥3,429.00 | F106: =SUM(雑費[[#Totals],[3 月]],金融​​[[#Totals],[3 月]],個人[[#Totals],[3 月]],会費と購読料[[#Totals],[3 月]],レクリエーション[[#Totals],[3 月]],休暇[[#Totals],[3 月]],医療保険[[#Totals],[3 月]],娯楽[[#Totals],[3 月]],交通[[#Totals],[3 月]],毎日[[#Totals],[3 月]],自宅[[#Totals],[3 月]]) -> ¥2,718.00 | G106: =SUM(雑費[[#Totals],[4 月]],金融​​[[#Totals],[4 月]],個人[[#Totals],[4 月]],会費と購読料[[#Totals],[4 月]],レクリエーション[[#Totals],[4 月]],休暇[[#Totals],[4 月]],医療保険[[#Totals],[4 月]],娯楽[[#Totals],[4 月]],交通[[#Totals],[4 月]],毎日[[#Totals],[4 月]],自宅[[#Totals],[4 月]]) -> ¥0.00 | H106: =SUM(雑費[[#Totals],[5 月]],金融​​[[#Totals],[5 月]],個人[[#Totals],[5 月]],会費と購読料[[#Totals],[5 月]],レクリエーション[[#Totals],[5 月]],休暇[[#Totals],[5 月]],医療保険[[#Totals],[5 月]],娯楽[[#Totals],[5 月]],交通[[#Totals],[5 月]],毎日[[#Totals],[5 月]],自宅[[#Totals],[5 月]]) -> ¥0.00 | I106: =SUM(雑費[[#Totals],[6 月]],金融​​[[#Totals],[6 月]],個人[[#Totals],[6 月]],会費と購読料[[#Totals],[6 月]],レクリエーション[[#Totals],[6 月]],休暇[[#Totals],[6 月]],医療保険[[#Totals],[6 月]],娯楽[[#Totals],[6 月]],交通[[#Totals],[6 月]],毎日[[#Totals],[6 月]],自宅[[#Totals],[6 月]]) -> ¥0.00 | J106: =SUM(雑費[[#Totals],[7 月]],金融​​[[#Totals],[7 月]],個人[[#Totals],[7 月]],会費と購読料[[#Totals],[7 月]],レクリエーション[[#Totals],[7 月]],休暇[[#Totals],[7 月]],医療保険[[#Totals],[7 月]],娯楽[[#Totals],[7 月]],交通[[#Totals],[7 月]],毎日[[#Totals],[7 月]],自宅[[#Totals],[7 月]]) -> ¥0.00 | K106: =SUM(雑費[[#Totals],[8 月]],金融​​[[#Totals],[8 月]],個人[[#Totals],[8 月]],会費と購読料[[#Totals],[8 月]],レクリエーション[[#Totals],[8 月]],休暇[[#Totals],[8 月]],医療保険[[#Totals],[8 月]],娯楽[[#Totals],[8 月]],交通[[#Totals],[8 月]],毎日[[#Totals],[8 月]],自宅[[#Totals],[8 月]]) -> ¥0.00 | L106: =SUM(雑費[[#Totals],[9 月]],金融​​[[#Totals],[9 月]],個人[[#Totals],[9 月]],会費と購読料[[#Totals],[9 月]],レクリエーション[[#Totals],[9 月]],休暇[[#Totals],[9 月]],医療保険[[#Totals],[9 月]],娯楽[[#Totals],[9 月]],交通[[#Totals],[9 月]],毎日[[#Totals],[9 月]],自宅[[#Totals],[9 月]]) -> ¥0.00 | M106: =SUM(雑費[[#Totals],[10 月]],金融​​[[#Totals],[10 月]],個人[[#Totals],[10 月]],会費と購読料[[#Totals],[10 月]],レクリエーション[[#Totals],[10 月]],休暇[[#Totals],[10 月]],医療保険[[#Totals],[10 月]],娯楽[[#Totals],[10 月]],交通[[#Totals],[10 月]],毎日[[#Totals],[10 月]],自宅[[#Totals],[10 月]]) -> ¥0.00 | N106: =SUM(雑費[[#Totals],[11 月]],金融​​[[#Totals],[11 月]],個人[[#Totals],[11 月]],会費と購読料[[#Totals],[11 月]],レクリエーション[[#Totals],[11 月]],休暇[[#Totals],[11 月]],医療保険[[#Totals],[11 月]],娯楽[[#Totals],[11 月]],交通[[#Totals],[11 月]],毎日[[#Totals],[11 月]],自宅[[#Totals],[11 月]]) -> ¥0.00 | O106: =SUM(雑費[[#Totals],[12 月]],金融​​[[#Totals],[12 月]],個人[[#Totals],[12 月]],会費と購読料[[#Totals],[12 月]],レクリエーション[[#Totals],[12 月]],休暇[[#Totals],[12 月]],医療保険[[#Totals],[12 月]],娯楽[[#Totals],[12 月]],交通[[#Totals],[12 月]],毎日[[#Totals],[12 月]],自宅[[#Totals],[12 月]]) -> ¥0.00 | P106: =SUM(雑費[[#Totals],[年]],金融​​[[#Totals],[年度]],個人[[#Totals],[年度]],会費と購読料[[#Totals],[年度]],レクリエーション[[#Totals],[年度]],休暇[[#Totals],[年度]],医療保険[[#Totals],[年度]],娯楽[[#Totals],[年度]],交通[[#Totals],[年度]],毎日[[#Totals],[年度]],自宅[[#Totals],[年]]) -> ¥8,834.00
C107: 現金の不足/余剰 | D107: =収入[[#Totals],[1 月]]-D106 -> ¥1,036.00 | E107: =収入[[#Totals],[2 月]]-E106 -> ¥127.00 | F107: =収入[[#Totals],[3 月]]-F106 -> ¥926.00 | G107: =収入[[#Totals],[4 月]]-G106 -> ¥0.00 | H107: =収入[[#Totals],[5 月]]-H106 -> ¥0.00 | I107: =収入[[#Totals],[6 月]]-I106 -> ¥0.00 | J107: =収入[[#Totals],[7 月]]-J106 -> ¥0.00 | K107: =収入[[#Totals],[8 月]]-K106 -> ¥0.00 | L107: =収入[[#Totals],[9 月]]-L106 -> ¥0.00 | M107: =収入[[#Totals],[10 月]]-M106 -> ¥0.00 | N107: =収入[[#Totals],[11 月]]-N106 -> ¥0.00 | O107: =収入[[#Totals],[12 月]]-O106 -> ¥0.00 | P107: =収入[[#Totals],[年]]-P106 -> ¥2,089.00
